bitfinex-derivatives/quotes_SOLF0:USTF0_20240906
["timestamp","ask_amount","ask_price","bid_price","bid_amount"]
[1725627441469,0.05520559,133.63,133.59,0.0551605]
[1725627442065,2.6925,133.65,133.59,0.0551605]
[1725627442466,0.04873225,133.62,133.59,0.0551605]
[1725627445965,0.04873225,133.62,133.6,3.7428]
[1725627446668,0.04873225,133.62,133.59,0.0551605]
[1725627447269,0.04873225,133.62,133.6,3.743]
[1725627447672,0.04873225,133.62,133.59,0.0551605]
[1725627447874,0.04873225,133.62,133.61,3.7427]
[1725627450775,43.12,133.74,133.61,43.12]
[1725627450964,3.7401,133.71,133.61,43.12]
[1725627451275,5.3883,133.73,133.61,43.12]
[1725627451772,5.3883,133.73,133.65,3.7415]
[1725627452073,9.1279,133.73,133.66,0.05320327]
[1725627452272,5.3883,133.73,133.66,0.05320327]
[1725627452670,43.12,133.71,133.66,0.05320327]
[1725627453167,3.7406,133.69,133.66,0.05320327]
[1725627453370,43.12,133.71,133.66,0.05320327]
[1725627453878,48.5083,133.73,133.67,3.7409]
[1725627454174,5.3883,133.73,133.66,0.05320327]
[1725627454973,48.4983,133.73,133.66,0.05320327]
[1725627455676,3.74,133.71,133.66,0.05320327]
[1725627456074,48.4983,133.73,133.68,3.7406]
[1725627456376,3.7399,133.72,133.66,0.05320327]
[1725627456680,48.4983,133.73,133.68,3.7406]
[1725627456975,48.4983,133.73,133.68,0.05212538]
[1725627457172,5.3883,133.73,133.68,0.05212538]
[1725627457674,43.11,133.81,133.68,0.05212538]
[1725627457872,3.7384,133.77,133.68,2.73892538]
[1725627458078,3.7384,133.77,133.73,3.7392]
[1725627458268,3.7384,133.77,133.68,2.6868]
[1725627458468,35.89,133.77,133.71,0.0535798]
[1725627458770,35.89,133.77,133.72,3.7396]
[1725627459278,3.79097926,133.76,133.72,3.7396]
[1725627459575,3.7391,133.75,133.71,3.7934798]
[1725627459770,35.89,133.74,133.71,0.0535798]
[1725627459964,3.74,133.71,133.68,3.7406]
[1725627460164,5.359,133.73,133.62,45.7968]
[1725627460477,2.7836,133.73,133.7,3.7401]
[1725627460672,2.7836,133.73,133.64,43.11]
[1725627461082,6.5232,133.73,133.63,7.4844]
[1725627461378,0.05068229,133.7,133.62,45.7968]
[1725627462280,0.05068229,133.7,133.68,3.7406]
[1725627462871,0.05068229,133.7,133.62,45.7968]
[1725627465483,0.05068229,133.7,133.65,0.05175243]
[1725627465876,0.05068229,133.7,133.67,3.741]
[1725627466374,0.05068229,133.7,133.65,3.84403524]
[1725627466571,0.05068229,133.7,133.65,43.16175243]
[1725627466774,0.05068229,133.7,133.65,46.88481251]
[1725627467078,0.05068229,133.7,133.65,0.05175243]
[1725627467477,0.05068229,133.7,133.68,3.7406]
[1725627468273,0.05068229,133.7,133.65,0.05175243]
[1725627468876,0.05068229,133.7,133.66,3.7412]
[1725627469085,0.05068229,133.7,133.65,0.05175243]
[1725627469275,3.7406,133.69,133.65,0.05175243]
[1725627469677,0.05068229,133.7,133.65,0.05175243]
[1725627469974,3.741,133.68,133.65,0.05175243]
[1725627470177,43.16068229,133.7,133.65,0.05175243]
[1725627470377,0.05068229,133.7,133.65,0.05175243]
[1725627471672,0.05068229,133.7,133.66,3.7412]
[1725627472076,0.05068229,133.7,133.65,0.05175243]
[1725627472487,43.16068229,133.7,133.65,0.05175243]
[1725627472682,3.7413,133.67,133.65,0.05175243]
[1725627472882,43.16068229,133.7,133.65,0.05175243]
[1725627473183,3.741,133.68,133.65,0.05175243]
[1725627473385,0.05068229,133.7,133.65,0.05175243]
[1725627473781,0.05068229,133.7,133.66,3.7413]
[1725627473782,3.7406,133.69,133.66,3.7413]
[1725627474179,3.7408,133.68,133.65,3.79325243]
[1725627474784,0.05068229,133.7,133.65,0.05175243]
[1725627476078,3.79108229,133.7,133.67,3.7411]
[1725627477089,3.7405,133.69,133.67,3.7411]
[1725627477478,3.7405,133.69,133.66,3.7412]
[1725627478388,0.05068229,133.7,133.67,3.741]
[1725627478891,3.7405,133.69,133.67,3.741]
[1725627479287,0.05068229,133.7,133.65,0.05175243]
[1725627479683,0.05068229,133.7,133.68,3.7406]
[1725627480190,0.05068229,133.7,133.67,3.7408]
[1725627480389,0.05068229,133.7,133.65,0.05175243]
[1725627480692,3.79108229,133.7,133.65,0.05175243]
[1725627480884,3.79108229,133.7,133.67,3.7408]
[1725627481086,3.79108229,133.7,133.65,0.05175243]
[1725627481486,3.79108229,133.7,133.67,3.7408]
[1725627482288,3.79108229,133.7,133.68,3.7407]
[1725627482691,0.05068229,133.7,133.68,3.7407]
[1725627482896,0.05068229,133.7,133.67,3.7409]
[1725627483191,3.7405,133.69,133.67,3.7409]
[1725627483986,3.79098229,133.7,133.67,3.7409]
[1725627484200,0.05068229,133.7,133.68,3.7406]
[1725627484396,0.05068229,133.7,133.65,3.75740659]
[1725627484594,0.05068229,133.7,133.69,3.7405]
[1725627484796,2.8074,133.77,133.68,35.93]
[1725627484999,35.93,133.82,133.71,35.93]
[1725627485200,35.93,133.82,133.72,2.7568]
[1725627485801,35.93,133.82,133.76,3.7384]
[1725627485997,3.7373,133.81,133.72,2.7568]
[1725627486296,35.93,133.82,133.76,0.05365076]
[1725627487799,0.04730307,133.8,133.77,3.7381]
[1725627488401,0.04730307,133.8,133.78,3.7379]
[1725627488990,0.04730307,133.8,133.76,0.05365076]
[1725627488991,3.78470307,133.8,133.77,3.7382]
[1725627489402,35.97730307,133.8,133.76,0.05365076]
[1725627489603,3.7383,133.77,133.76,0.05365076]
[1725627489903,7.47792465,133.77,133.76,0.05365076]
[1725627490105,3.73962465,133.77,133.67,2.7468]
[1725627490310,35.93,133.76,133.67,5.4268]
[1725627490511,35.93,133.74,133.67,2.68]
[1725627490802,6.39637861,133.76,133.59,7.4862]
[1725627490803,35.93,133.71,133.6,5.2743]
[1725627491003,35.93,133.71,133.6,7.9543]
[1725627491508,0.05712979,133.67,133.6,7.9543]
[1725627492897,0.05712979,133.67,133.62,35.93]
[1725627493605,0.05712979,133.67,133.62,39.61741502]
[1725627494004,0.05712979,133.67,133.62,35.93]
[1725627494498,0.05712979,133.67,133.64,3.7417]
[1725627494703,0.05712979,133.67,133.6,43.8843]
[1725627494898,0.05712979,133.67,133.62,35.93]
[1725627495107,0.05712979,133.67,133.66,3.7413]
[1725627495806,0.05712979,133.67,133.62,35.93]
[1725627495807,0.05712979,133.67,133.65,3.7415]
[1725627496309,0.05712979,133.67,133.6,47.6233553]
[1725627496507,0.05712979,133.67,133.64,3.7417]
[1725627496700,0.05712979,133.67,133.6,47.6233553]
[1725627496900,0.05712979,133.67,133.62,35.93]
[1725627497102,0.05712979,133.67,133.65,3.7414]
[1725627497506,0.05712979,133.67,133.62,35.93]
[1725627497709,0.05712979,133.67,133.66,3.7413]
[1725627499716,38.527,133.75,133.65,35.98546143]
[1725627500022,3.7392,133.74,133.65,0.05546143]
[1725627500222,7.39902419,133.74,133.68,3.7406]
[1725627500527,3.65982419,133.74,133.64,35.93]
[1725627500722,42.266,133.75,133.69,3.7403]
[1725627501223,6.4674,133.77,133.68,0.04784546]
[1725627501425,6.4674,133.77,133.68,2.67934546]
[1725627501610,6.4674,133.77,133.68,2.6315]
[1725627501611,3.77020637,133.76,133.68,2.6315]
[1725627501922,3.77020637,133.76,133.68,38.5615]
[1725627502119,38.6591,133.77,133.71,0.05058718]
[1725627502422,3.67817414,133.77,133.71,0.05058718]
[1725627502622,3.7384,133.77,133.71,0.05058718]
[1725627502825,7.52805664,133.77,133.71,0.05058718]
[1725627503016,3.78965664,133.77,133.71,3.79038718]
[1725627503217,3.7387,133.76,133.71,3.79038718]
[1725627503427,3.7387,133.76,133.71,0.05058718]
[1725627503613,3.7387,133.76,133.68,2.6315]
[1725627503819,3.7389,133.75,133.68,2.6315]
[1725627504020,3.7389,133.75,133.72,0.05025028]
[1725627504221,6.57287764,133.77,133.72,0.05025028]
[1725627504624,6.57287764,133.77,133.73,3.7392]
[1725627504823,6.57287764,133.77,133.72,0.05025028]
[1725627505023,42.50287764,133.77,133.72,0.05025028]
[1725627505326,3.7391,133.74,133.72,0.05025028]
[1725627505626,35.93,133.75,133.72,0.05025028]
[1725627506721,3.7394,133.73,133.69,3.7403]
[1725627507122,3.7394,133.73,133.65,2.6112]
[1725627507123,2.785,133.74,133.65,2.6112]
[1725627508128,0.04811457,133.71,133.65,2.6112]
[1725627508321,0.04811457,133.71,133.69,3.7404]
[1725627508827,0.04811457,133.71,133.68,3.7407]
[1725627509620,0.04811457,133.71,133.67,3.741]
[1725627509816,0.04811457,133.71,133.65,2.6112]
[1725627510020,7.50985286,133.7,133.65,2.6112]
[1725627510226,0.04811457,133.71,133.62,2.6458]
[1725627510424,0.04811457,133.71,133.54,22.4677]
[1725627510425,35.93,133.69,133.61,2.559]
[1725627510724,3.7415,133.66,133.61,6.3016]
[1725627511230,3.7415,133.66,133.55,5.4404]
[1725627511231,3.7424,133.63,133.59,3.7431]
[1725627511542,0.05572489,133.66,133.56,2.559]
[1725627511826,35.93,133.67,133.56,2.559]
[1725627512027,0.05603864,133.62,133.56,2.559]
[1725627513432,7.55351318,133.62,133.57,3.7438]
[1725627513933,0.05603864,133.62,133.56,2.559]
[1725627514324,3.75389996,133.62,133.56,2.559]
[1725627514529,3.75389996,133.62,133.58,3.7434]
[1725627514836,0.05603864,133.62,133.58,3.7434]
[1725627515027,0.05603864,133.62,133.56,2.559]
[1725627515228,3.72347139,133.62,133.56,2.559]
[1725627515437,0.05603864,133.62,133.56,2.559]
[1725627515827,0.05603864,133.62,133.59,3.7432]
[1725627516033,3.77289973,133.62,133.59,3.7432]
[1725627516234,0.05603864,133.62,133.59,3.7432]
[1725627516627,0.05603864,133.62,133.58,3.7435]
[1725627516827,3.79873726,133.62,133.56,2.559]
[1725627517024,0.05603864,133.62,133.56,2.559]
[1725627517228,0.05603864,133.62,133.58,3.7435]
[1725627517737,3.87624988,133.62,133.58,3.7435]
[1725627518430,7.61884988,133.62,133.57,3.7437]
[1725627518832,3.87624988,133.62,133.56,2.559]
[1725627519132,3.87624988,133.62,133.58,3.7434]
[1725627519637,3.87624988,133.62,133.59,3.7432]
[1725627521135,0.05603864,133.62,133.61,3.7427]
[1725627521437,3.8466723,133.62,133.56,2.559]
[1725627521644,3.743,133.6,133.56,6.3029]
[1725627521937,3.74794129,133.6,133.56,2.559]
[1725627522132,35.93,133.6,133.51,3.7454]
[1725627522333,35.93,133.6,133.47,3.79400411]
[1725627522334,35.93,133.58,133.47,3.79400411]
[1725627522536,7.9213,133.59,133.46,8.0886]
[1725627522537,35.93,133.56,133.46,8.0886]
[1725627522730,35.93,133.56,133.5,3.7456]
[1725627522928,35.93,133.58,133.47,35.93]
[1725627523127,0.0576018,133.54,133.5,35.93]
[1725627523936,0.0576018,133.54,133.47,35.93]
[1725627524439,0.0576018,133.54,133.5,35.93]
[1725627524628,2.5644,133.59,133.5,35.93]
[1725627524943,3.71760723,133.6,133.52,35.93]
[1725627525240,38.7551,133.63,133.57,3.7437]
[1725627525737,2.8251,133.63,133.54,35.93]
[1725627526037,35.93,133.67,133.62,3.7422]
[1725627526540,5.6208,133.68,133.58,35.93]
[1725627527036,5.6208,133.68,133.63,3.7926126]
[1725627527339,5.6208,133.68,133.63,0.0506126]
[1725627528234,5.6208,133.68,133.63,3.7927126]
[1725627528628,5.6208,133.68,133.63,0.0506126]
[1725627529343,3.7411,133.67,133.63,0.0506126]
[1725627529540,5.6208,133.68,133.63,3.7928126]
[1725627530034,5.6208,133.68,133.64,3.7419]
[1725627530837,9.3616,133.68,133.64,3.7419]
[1725627531032,5.6208,133.68,133.63,0.0506126]
[1725627531242,35.93,133.67,133.63,0.0506126]
[1725627531437,39.6711,133.67,133.63,0.0506126]
[1725627532331,3.7416,133.65,133.63,0.0506126]
[1725627532531,35.93,133.67,133.63,0.0506126]
[1725627532741,38.6775,133.67,133.6,3.7428]
[1725627532930,35.93,133.64,133.55,2.6197]
[1725627533843,35.93,133.62,133.53,2.7057]
[1725627534039,39.69984636,133.62,133.53,2.7057]
[1725627534340,39.69984636,133.62,133.5,5.3224]
[1725627534341,35.93,133.6,133.5,5.3224]
[1725627534641,39.6733,133.6,133.5,5.3224]
[1725627535140,35.93,133.6,133.5,5.3224]
[1725627535336,2.7299,133.61,133.51,35.93]
[1725627535734,6.4727,133.61,133.56,3.744]
[1725627536147,2.7299,133.61,133.51,35.93]
[1725627536441,3.7432,133.6,133.51,35.93]
[1725627536938,3.7432,133.6,133.5,5.3224]
[1725627536939,0.04857157,133.57,133.5,5.3224]
[1725627538145,0.04857157,133.57,133.53,3.7448]
[1725627538537,3.79247157,133.57,133.53,3.7448]
[1725627538739,0.04857157,133.57,133.5,2.7244]
[1725627539035,3.7445,133.55,133.5,2.7244]
[1725627539236,35.93,133.56,133.46,2.5868]
[1725627539848,3.7445,133.55,133.49,3.7459]
[1725627540045,3.7445,133.55,133.46,2.5868]
[1725627540046,35.93,133.58,133.47,35.93]
[1725627540244,0.04822667,133.52,133.47,41.178]
[1725627540444,0.04822667,133.52,133.51,3.7455]
[1725627540640,2.7267,133.59,133.5,35.93]
[1725627541448,2.7299,133.61,133.52,35.93]
[1725627541649,2.7299,133.61,133.53,3.72742747]
[1725627541840,2.7299,133.61,133.52,35.93]
[1725627542040,2.7299,133.61,133.55,0.0481775]
[1725627542351,2.7029,133.63,133.55,0.0481775]
[1725627542551,35.93,133.67,133.57,35.93]
[1725627542747,3.7411,133.67,133.57,35.93]
[1725627543351,3.78774668,133.66,133.61,0.05128657]
[1725627543654,5.3704,133.68,133.61,0.05128657]
[1725627543952,3.7411,133.67,133.62,3.7423]
[1725627544344,9.15690351,133.68,133.61,0.05128657]
[1725627544649,3.7419,133.65,133.61,0.05128657]
[1725627544954,3.78964305,133.66,133.61,0.05128657]
[1725627545350,0.04824305,133.66,133.61,0.05128657]
[1725627546349,0.04824305,133.66,133.62,3.7424]
[1725627546556,0.04824305,133.66,133.61,0.05128657]
[1725627547053,3.78964305,133.66,133.61,0.05128657]
[1725627547353,0.04824305,133.66,133.61,0.05128657]
[1725627547558,0.04824305,133.66,133.62,3.7425]
[1725627548449,3.78964305,133.66,133.62,3.7425]
[1725627550043,0.04824305,133.66,133.61,0.05128657]
[1725627550644,0.04824305,133.66,133.65,3.7416]
[1725627551951,0.04824305,133.66,133.64,0.05070806]
[1725627552144,35.97824305,133.66,133.64,0.05070806]
[1725627552351,35.97824305,133.66,133.57,2.6197]
[1725627552755,35.93,133.66,133.57,2.6197]
[1725627553153,3.7418,133.65,133.6,3.7429]
[1725627553552,5.3932,133.68,133.57,2.6197]
[1725627554160,0.05108971,133.64,133.57,2.6197]
[1725627554553,0.05108971,133.64,133.61,3.7426]
[1725627555058,0.05108971,133.64,133.55,5.2881]
[1725627555655,0.05108971,133.64,133.61,3.7426]
[1725627555854,0.05108971,133.64,133.55,5.2881]
[1725627556753,0.05108971,133.64,133.62,3.7423]
[1725627557859,0.05108971,133.64,133.61,3.7427]
[1725627558162,0.05108971,133.64,133.59,35.97736657]
[1725627558560,0.05108971,133.64,133.62,3.7423]
[1725627559466,0.05108971,133.64,133.59,39.7786601]
[1725627559766,0.05108971,133.64,133.59,35.97736657]
[1725627560559,7.4757,133.79,133.61,35.93]
[1725627560775,42.3478027,133.73,133.62,2.5927]
[1725627560963,42.3478027,133.73,133.63,35.93]
[1725627560964,39.5806027,133.73,133.63,35.93]
[1725627561160,3.7398,133.72,133.63,38.628]
[1725627561562,3.7398,133.72,133.66,3.7412]
[1725627561767,3.7401,133.71,133.66,3.7412]
[1725627562074,3.7401,133.71,133.66,3.7914964]
[1725627562374,39.5806027,133.73,133.66,3.7914964]
[1725627562375,39.5806027,133.73,133.67,3.7409]
[1725627563059,0.05550246,133.71,133.67,3.7409]
[1725627563965,3.79550246,133.71,133.66,3.7915964]
[1725627564162,0.05550246,133.71,133.66,0.0502964]
[1725627564567,0.05550246,133.71,133.67,3.741]
[1725627564768,0.05550246,133.71,133.66,0.0502964]
[1725627565569,0.05550246,133.71,133.66,3.7914964]
[1725627566261,0.05550246,133.71,133.67,3.741]
[1725627566667,0.05550246,133.71,133.66,0.0502964]
[1725627566865,0.05550246,133.71,133.68,3.7408]
[1725627567061,0.05550246,133.71,133.66,0.0502964]
[1725627567375,0.05550246,133.71,133.67,3.7411]
[1725627567669,0.05550246,133.71,133.66,0.0502964]
[1725627568070,3.79560246,133.71,133.66,3.7914964]
[1725627569181,3.7405,133.69,133.66,0.0502964]
[1725627569366,35.98550246,133.71,133.66,0.0502964]
[1725627569567,3.7409,133.68,133.66,0.0502964]
[1725627569967,35.98550246,133.71,133.66,0.0502964]
[1725627570173,3.7407,133.69,133.66,0.0502964]
[1725627570475,35.98550246,133.71,133.66,0.0502964]
[1725627570673,3.7404,133.7,133.66,3.7913964]
[1725627570871,35.98550246,133.71,133.66,0.0502964]
[1725627571175,39.72570246,133.71,133.67,3.741]
[1725627571967,3.7403,133.7,133.67,3.741]
[1725627572181,35.98550246,133.71,133.67,3.741]
[1725627572579,3.79560246,133.71,133.67,3.741]
[1725627573175,35.98550246,133.71,133.66,0.0502964]
[1725627573780,3.7408,133.69,133.66,0.0502964]
[1725627574283,3.7404,133.7,133.67,3.7411]
[1725627574481,35.98550246,133.71,133.66,0.0502964]
[1725627574975,3.7405,133.7,133.66,3.7914964]
[1725627575185,3.7405,133.7,133.66,0.0502964]
[1725627575480,3.7407,133.69,133.66,0.0502964]
[1725627575675,35.98550246,133.71,133.66,0.0502964]
[1725627576082,3.7408,133.68,133.66,0.0502964]
[1725627576285,35.98550246,133.71,133.66,0.0502964]
[1725627577480,3.7409,133.68,133.66,0.0502964]
[1725627577883,35.98550246,133.71,133.66,0.0502964]
[1725627578090,35.93,133.69,133.61,2.6326]
[1725627578277,2.8145,133.68,133.61,2.6326]
[1725627578583,2.8145,133.68,133.62,3.7425]
[1725627579083,2.8145,133.68,133.61,2.6326]
[1725627579590,0.04993337,133.66,133.61,2.6326]
[1725627579776,3.84812735,133.66,133.61,2.6326]
[1725627580188,0.04993337,133.66,133.62,3.7424]
[1725627580788,0.04993337,133.66,133.63,3.7421]
[1725627582781,0.04993337,133.66,133.62,3.7423]
[1725627583180,3.76587101,133.66,133.58,2.6203]
[1725627583384,0.04993337,133.66,133.58,6.3638]
[1725627583886,3.7423,133.63,133.58,3.7435]
[1725627584298,3.72941339,133.62,133.58,3.7435]
[1725627584494,35.93,133.65,133.55,2.6634]
[1725627584800,0.05298616,133.62,133.55,38.5934]
[1725627585007,0.05298616,133.62,133.6,3.7428]
[1725627585604,0.05298616,133.62,133.61,3.7427]
[1725627585808,2.7583,133.7,133.6,35.93]
[1725627586098,3.741,133.68,133.62,3.7424]
[1725627586306,2.7583,133.7,133.62,3.7424]
[1725627586508,3.7411,133.68,133.62,3.7424]
[1725627586706,3.7411,133.68,133.63,3.7421]
[1725627587105,3.7411,133.67,133.64,0.05199534]
[1725627588405,7.51723426,133.66,133.64,0.05199534]
[1725627588608,3.7414,133.66,133.64,0.05199534]
[1725627589005,3.79498189,133.66,133.64,0.05199534]
[1725627589202,0.05358189,133.66,133.64,0.05199534]
[1725627589610,0.05358189,133.66,133.64,3.79379534]
[1725627589906,0.05358189,133.66,133.64,0.05199534]
[1725627590212,25.50719943,133.76,133.64,35.98199534]
[1725627590411,5.332,133.75,133.64,35.98199534]
[1725627590707,5.332,133.75,133.64,35.93]
[1725627590908,3.7395,133.73,133.65,2.7879]
[1725627591109,7.40995235,133.73,133.65,2.7879]
[1725627591305,3.67045235,133.73,133.65,2.7879]
[1725627591612,35.93,133.74,133.68,0.0522248]
[1725627591905,5.332,133.75,133.68,0.0522248]
[1725627592207,3.7396,133.73,133.68,3.7929248]
[1725627592406,3.74279735,133.72,133.68,0.0522248]
[1725627592613,5.332,133.75,133.68,0.0522248]
[1725627592908,35.93,133.74,133.68,0.0522248]
[1725627593508,5.332,133.75,133.68,0.0522248]
[1725627593703,35.93,133.71,133.68,0.0522248]
[1725627593909,35.93,133.69,133.61,2.6703]
[1725627594408,35.93,133.69,133.63,3.7421]
[1725627594609,35.93,133.69,133.57,35.93]
[1725627594803,35.93,133.67,133.56,2.6265]
[1725627595007,3.742,133.64,133.6,3.7428]
[1725627595210,3.75496106,133.64,133.56,5.3826]
[1725627595511,3.7421,133.64,133.6,0.05297199]
[1725627595711,7.56632007,133.64,133.6,0.05297199]
[1725627595907,3.7418,133.65,133.6,3.79587199]
[1725627596099,3.65687534,133.64,133.6,3.79587199]
[1725627596305,35.93,133.67,133.6,3.79587199]
[1725627596500,35.93,133.67,133.6,0.05297199]
[1725627597213,3.7421,133.64,133.6,0.05297199]
[1725627597416,7.56220196,133.64,133.6,3.79597199]
[1725627597600,3.7421,133.64,133.6,3.79597199]
[1725627598215,7.54423206,133.64,133.6,3.79597199]
[1725627598409,3.7422,133.63,133.6,0.05297199]
[1725627598809,3.75608418,133.63,133.6,0.05297199]
[1725627599011,3.7426,133.62,133.6,0.05297199]
[1725627600213,3.7427,133.61,133.54,3.7445]
[1725627600511,35.93,133.57,133.46,8.1099]
[1725627600714,3.7446,133.55,133.49,3.746]
[1725627600914,7.55347077,133.55,133.46,44.0399]
[1725627601109,3.7446,133.55,133.46,44.0399]
[1725627601310,3.7442,133.56,133.46,44.0399]
[1725627601512,3.83320502,133.56,133.46,8.1099]
[1725627601712,38.5127,133.55,133.46,11.79011443]
[1725627602011,38.5331,133.62,133.46,11.79011443]
[1725627602012,0.05637805,133.52,133.48,35.93]
[1725627602210,41.1158,133.62,133.48,35.93]
[1725627602411,41.1158,133.62,133.49,0.05146196]
[1725627602711,2.5827,133.62,133.51,35.93]
[1725627602910,6.3253,133.62,133.53,35.93]
[1725627603115,2.5827,133.62,133.53,35.93]
[1725627603417,2.5827,133.62,133.56,0.04752597]
[1725627603617,35.93,133.64,133.56,0.04752597]
[1725627603821,7.4791,133.73,133.56,0.04752597]
[1725627603822,2.7182,133.66,133.58,35.93]
[1725627604012,3.7398,133.72,133.67,3.741]
[1725627604210,3.68733355,133.73,133.64,35.93]
[1725627604417,35.93,133.74,133.62,35.93]
[1725627604622,2.6096,133.73,133.62,35.93]
[1725627604815,39.63494403,133.74,133.62,35.93]
[1725627604816,39.63494403,133.74,133.67,0.05718445]
[1725627605113,35.93,133.74,133.67,0.05718445]
[1725627605316,35.93,133.74,133.67,3.79828445]
[1725627605514,3.74307745,133.78,133.68,35.93]
[1725627605718,3.7388,133.76,133.68,2.8164]
[1725627606017,39.67906578,133.76,133.68,2.8164]
[1725627606216,35.93,133.72,133.63,3.742]
[1725627606427,35.93,133.72,133.71,0.05459441]
[1725627606917,35.93,133.72,133.61,35.93]
[1725627607311,0.04998287,133.73,133.62,2.6052]
[1725627607509,3.78948287,133.73,133.66,3.7411]
[1725627607710,3.7395,133.73,133.62,6.25845258]
[1725627608024,3.7398,133.72,133.66,3.7413]
[1725627608615,3.7394,133.73,133.66,3.7413]
[1725627608918,3.7394,133.73,133.67,3.7409]
[1725627609317,2.6579,133.75,133.63,35.93]
[1725627609529,0.05159831,133.71,133.69,0.0523467]
[1725627609721,5.61264961,133.83,133.73,3.7393]
[1725627609722,6.3474,133.79,133.73,3.7393]
[1725627610020,35.93,133.84,133.74,35.93]
[1725627610317,35.93,133.84,133.72,35.93]
[1725627610520,35.93,133.8,133.7,2.5542]
[1725627610916,3.7393,133.74,133.68,3.7407]
[1725627611117,3.65495113,133.76,133.74,0.05567615]
[1725627611515,0.05085217,133.72,133.65,38.4842]
[1725627613019,2.7669,133.78,133.7,35.93]
[1725627613229,35.93,133.8,133.7,35.93]
[1725627613525,35.93,133.82,133.7,35.93]
[1725627614030,2.6036,133.83,133.72,35.93]
[1725627614321,3.7362,133.85,133.79,3.7375]
[1725627614720,35.93,133.86,133.79,3.7375]
[1725627615427,0.05485019,133.84,133.81,0.04884626]
[1725627617614,0.05485019,133.84,133.83,3.7366]
[1725627618225,2.6036,133.9,133.81,0.04884626]
[1725627618422,3.77308423,133.92,133.81,43.12884626]
[1725627618721,3.7359,133.86,133.8,3.7372]
[1725627618924,3.77495321,133.88,133.79,2.6026]
[1725627619129,3.65683406,133.89,133.79,2.6026]
[1725627619425,3.7356,133.87,133.81,3.737]
[1725627619924,43.08,133.9,133.83,0.05106641]
[1725627620130,3.72374332,133.92,133.83,0.05106641]
[1725627620331,45.7589,133.95,133.83,0.05106641]
[1725627620521,8.87584208,133.94,133.83,0.05106641]
[1725627620823,0.27469178,133.93,133.79,45.6826]
[1725627621028,43.08,133.93,133.87,0.05006716]
[1725627621228,2.5673,133.94,133.87,0.05006716]
[1725627621528,2.5509,134.0,133.87,0.05006716]
[1725627621716,0.27459587,133.99,133.87,2.67346716]
[1725627622031,3.7326,133.98,133.92,3.7339]
[1725627622330,5.3529,134.0,133.87,2.6234]
[1725627622531,2.802,134.0,133.92,0.0560336]
[1725627622919,2.7392,134.01,133.92,0.0560336]
[1725627623118,6.4709,134.01,133.95,3.7331]
[1725627623326,45.8192,134.01,133.92,0.0560336]
[1725627623525,2.7392,134.01,133.9,2.5675]
[1725627623725,2.7392,134.01,133.83,43.08]
[1725627623726,43.08,133.95,133.83,43.08]
[1725627623931,3.77289051,133.94,133.82,5.4258]
[1725627624126,43.08,133.95,133.82,5.4258]
[1725627624329,43.08,133.93,133.88,0.05273974]
[1725627624633,6.43818642,133.92,133.88,0.05273974]
[1725627624928,2.7858,133.92,133.82,5.4258]
[1725627625324,3.7345,133.91,133.89,0.05693922]
[1725627625529,2.7858,133.92,133.89,0.05693922]
[1725627625726,3.7346,133.91,133.85,3.736]
[1725627626226,3.7347,133.9,133.89,0.05659499]
[1725627626829,43.08,133.9,133.82,2.8024]
[1725627627225,5.5019,133.92,133.82,2.8024]
[1725627627423,3.7345,133.91,133.88,0.05486704]
[1725627627624,5.5019,133.92,133.88,0.05486704]
[1725627627829,2.7858,133.92,133.82,2.8024]
[1725627628030,2.7858,133.92,133.88,0.05330888]
[1725627628232,2.6894,133.94,133.88,0.05330888]
[1725627629036,3.7349,133.9,133.88,0.05330888]
[1725627629230,2.6894,133.94,133.88,0.05330888]
[1725627629436,43.08,133.91,133.88,0.05330888]
[1725627630333,43.08,133.91,133.82,2.8024]
[1725627630534,43.08,133.89,133.77,5.3299]
[1725627630735,43.08,133.89,133.78,2.6654]
[1725627631134,46.73431816,133.89,133.78,2.6654]